fUST/lending_fUST_20241205
["ID","MTS","AMOUNT","RATE_DAILY","PERIOD"]
[344370136,1733382633539,-500.0,0.00021917,2]
[344370138,1733382633549,-500.18619274,0.00021917,2]
[344370140,1733382633559,-500.0,0.00021917,2]
[344370142,1733382633569,-500.0,0.00021917,2]
[344370144,1733382633579,-623.39261052,0.00021917,2]
[344370146,1733382633590,-500.0,0.00021917,2]
[344370148,1733382633599,-500.0,0.00021917,2]
[344370150,1733382633609,-506.66496417,0.00021917,2]
[344370152,1733382633618,-500.0,0.00021917,2]
[344370154,1733382633628,-500.0,0.00021917,2]
[344370156,1733382633638,-500.0,0.00021917,2]
[344370158,1733382633648,-500.0,0.00021917,2]
[344370160,1733382633658,-500.0,0.00021917,2]
[344370162,1733382633668,-500.0,0.00021917,2]
[344370164,1733382633677,-500.0,0.00021917,2]
[344370166,1733382633687,-500.0,0.00021917,2]
[344370169,1733382633697,-500.0,0.00021917,2]
[344370171,1733382633706,-524.23315313,0.00021917,2]
[344370173,1733382633715,-500.0,0.00021917,2]
[344370174,1733382633725,-500.0,0.00021917,2]
[344370177,1733382633734,-500.0,0.00021917,2]
[344370178,1733382633744,-500.0,0.00021917,2]
[344370181,1733382633754,-500.0,0.00021917,2]
[344370183,1733382633764,-500.63,0.00021917,2]
[344370185,1733382633776,-506.82215019,0.00021917,2]
[344370187,1733382633787,-500.0,0.00021917,2]
[344370189,1733382633796,-510.85688149,0.00021917,2]
[344370191,1733382633806,-500.0,0.00021917,2]
[344370193,1733382633817,-566.17048896,0.00021917,2]
[344370194,1733382633827,-500.0,0.00021917,2]
[344370197,1733382633837,-500.0,0.00021917,2]
[344370199,1733382633848,-500.0,0.00021917,2]
[344370200,1733382633857,-500.0,0.00021917,2]
[344370203,1733382633868,-505.65666865,0.00021917,2]
[344370205,1733382633878,-514.26115386,0.00021917,2]
[344370207,1733382633888,-500.0,0.00021917,2]
[344370209,1733382633898,-500.0,0.00021917,2]
[344370211,1733382633908,-500.0,0.00021917,2]
[344370213,1733382633919,-500.0,0.00021917,2]
[344370215,1733382633929,-209.76183611,0.00021917,2]
[344370217,1733382633939,-500.0,0.00021917,2]
[344370219,1733382633949,-500.0,0.00021917,2]
[344370221,1733382633960,-504.41936883,0.00021917,2]
[344370223,1733382633971,-500.0,0.00021917,2]
[344370225,1733382633981,-500.0,0.00021917,2]
[344370227,1733382633992,-500.5495867,0.00021917,2]
[344370229,1733382634001,-615.35993336,0.00021917,2]
[344370231,1733382634011,-503.14844579,0.00021917,2]
[344370233,1733382634021,-501.52196096,0.00021917,2]
[344370235,1733382634037,-500.0,0.00021917,2]
[344370237,1733382634048,-503.97452967,0.00021917,2]
[344370239,1733382634059,-500.0,0.00021917,2]
[344370241,1733382634069,-500.0,0.00021917,2]
[344370243,1733382634079,-500.0,0.00021917,2]
[344370245,1733382634089,-500.0,0.00021917,2]
[344370247,1733382634099,-500.0,0.00021917,2]
[344370249,1733382634109,-501.71323305,0.00021917,2]
[344370251,1733382634119,-500.0,0.00021917,2]
[344370253,1733382634129,-1031.75,0.00021917,2]
[344370255,1733382634139,-501.51311532,0.00021917,2]
[344370257,1733382634149,-500.0,0.00021917,2]
[344370259,1733382634158,-500.0,0.00021917,2]
[344370261,1733382634168,-501.32853129,0.00021917,2]
[344370263,1733382634178,-500.0,0.00021917,2]
[344370265,1733382634187,-500.0,0.00021917,2]
[344370267,1733382634197,-510.34354797,0.00021917,2]
[344370269,1733382634206,-500.0,0.00021917,2]
[344370271,1733382634216,-500.0,0.00021917,2]
[344370273,1733382634226,-500.96778518,0.00021917,2]
[344370275,1733382634235,-500.0,0.00021917,2]
[344370277,1733382634245,-500.0,0.00021917,2]
[344370279,1733382634254,-500.0,0.00021917,2]
[344370281,1733382634263,-797.51,0.00021917,2]
[344370283,1733382634274,-500.0,0.00021917,2]
[344370285,1733382634287,-500.0,0.00021917,2]
[344370287,1733382634296,-500.0,0.00021917,2]
[344370289,1733382634306,-500.0,0.00021917,2]
[344370291,1733382634315,-500.0,0.00021917,2]
[344370294,1733382634334,-500.0,0.00021917,2]
[344370296,1733382634347,-500.0,0.00021917,2]
[344370298,1733382634357,-500.0,0.00021917,2]
[344370300,1733382634367,-503.71690921,0.00021917,2]
[344370302,1733382634377,-500.0,0.00021917,2]
[344370304,1733382634388,-155.83049506,0.00021917,2]
[344370306,1733382634398,-500.0,0.00021917,2]
[344370309,1733382634408,-577.66144142,0.00021917,2]
[344370311,1733382634419,-500.0,0.00021917,2]
[344370313,1733382634430,-500.0,0.00021917,2]
[344370315,1733382634440,-500.0,0.00021917,2]
[344370316,1733382634450,-500.0,0.00021917,2]
[344370319,1733382634460,-500.0,0.00021917,2]
[344370321,1733382634470,-500.0,0.00021917,2]
[344370323,1733382634480,-518.96,0.00021917,2]
[344370325,1733382634489,-500.0,0.00021917,2]
[344370327,1733382634500,-504.67791085,0.00021917,2]
[344370329,1733382634509,-500.0,0.00021917,2]
[344370331,1733382634519,-506.23482646,0.00021917,2]
[344370333,1733382634538,-500.0,0.00021917,2]
[344370335,1733382634548,-500.0,0.00021917,2]
[344370337,1733382634557,-500.0,0.00021917,2]
[344370339,1733382634568,-500.0,0.00021917,2]
[344370341,1733382634579,-552.19,0.00021917,2]
[344370343,1733382634588,-500.0,0.00021917,2]
[344370345,1733382634599,-500.0,0.00021917,2]
[344370347,1733382634609,-500.0,0.00021917,2]
[344370349,1733382634619,-1085.42,0.00021917,2]
[344370351,1733382634629,-245.92184147,0.00021917,2]
[344370353,1733382634639,-500.0,0.00021917,2]
[344370355,1733382634648,-500.0,0.00021917,2]
[344370357,1733382634658,-500.0,0.00021917,2]
[344370359,1733382634669,-500.0,0.00021917,2]
[344370361,1733382634679,-513.05403765,0.00021917,2]
[344370363,1733382634688,-500.0,0.00021917,2]
[344370365,1733382634699,-500.0,0.00021917,2]
[344370367,1733382634708,-528.19860102,0.00021917,2]
[344370369,1733382634719,-531.1433281,0.00021917,2]
[344370371,1733382634730,-500.0,0.00021917,2]
[344370373,1733382634740,-1153.21,0.00021917,2]
[344370375,1733382634751,-500.0,0.00021917,2]
[344370377,1733382634762,-500.0,0.00021917,2]
[344370379,1733382634773,-500.0,0.00021917,2]
[344370381,1733382634792,-500.0,0.00021917,2]
[344370383,1733382634802,-500.0,0.00021917,2]
[344370385,1733382634813,-500.0,0.00021917,2]
[344370387,1733382634823,-512.71281711,0.00021917,2]
[344370389,1733382634833,-551.94661353,0.00021917,2]
[344370391,1733382634844,-616.79,0.00021917,2]
[344370393,1733382634854,-500.0,0.00021917,2]
[344370395,1733382634863,-500.0,0.00021917,2]
[344370397,1733382634873,-658.98,0.00021917,2]
[344370399,1733382634883,-500.0,0.00021917,2]
[344370401,1733382634893,-500.0,0.00021917,2]
[344370403,1733382634903,-500.0,0.00021917,2]
[344370405,1733382634912,-310.46604598,0.00021917,2]
[344370407,1733382634922,-500.0,0.00021917,2]
[344370409,1733382634931,-500.0,0.00021917,2]
[344370411,1733382634940,-500.0,0.00021917,2]
[344370413,1733382634952,-595.12429267,0.00021917,2]
[344370415,1733382634965,-500.0,0.00021917,2]
[344370417,1733382634975,-500.0,0.00021917,2]
[344370420,1733382634986,-500.0,0.00021917,2]
[344370422,1733382634998,-500.0,0.00021917,2]
[344370424,1733382635008,-151.0,0.00021917,2]
[344370426,1733382635017,-500.0,0.00021917,2]
[344370428,1733382635033,-500.0,0.00021917,2]
[344370430,1733382635042,-500.0,0.00021917,2]
[344370432,1733382635051,-500.0,0.00021917,2]
[344370434,1733382635060,-500.0,0.00021917,2]
[344370436,1733382635070,-5347.86,0.00021917,2]
[344370438,1733382635080,-521.11606384,0.00021917,2]
[344370440,1733382635090,-5035.07,0.00021917,2]
[344370442,1733382635100,-500.0,0.00022191,2]
[344370444,1733382635110,-505.81134531,0.00022191,2]
[344370446,1733382635120,-504.02799293,0.00022191,2]
[344370448,1733382635130,-502.59688794,0.00022191,2]
[344370450,1733382635139,-512.00402121,0.00022191,2]
[344370452,1733382635149,-533.60206952,0.00022191,2]
[344370454,1733382635159,-500.0,0.00022191,2]
[344370456,1733382635168,-500.0,0.00022191,2]
[344370458,1733382635177,-505.56622693,0.00022191,2]
[344370460,1733382635187,-502.77895353,0.00022191,2]
[344370462,1733382635196,-502.77072055,0.00022191,2]
[344370464,1733382635205,-502.69030261,0.00022191,2]
[344370466,1733382635215,-464.30724765,0.00022191,2]
[344370468,1733382635224,-503.19779154,0.00022191,2]
[344370480,1733382635323,-500.0,0.00022191,2]
[344370482,1733382635341,-500.0,0.00022191,2]
[344370484,1733382635351,-500.0,0.00022191,2]
[344370486,1733382635360,-500.0,0.00022191,2]
[344370488,1733382635369,-500.0,0.00022191,2]
[344370490,1733382635379,-511.76354738,0.00022191,2]
[344370492,1733382635389,-500.0,0.00022191,2]
[344370494,1733382635399,-500.0,0.00022191,2]
[344370496,1733382635409,-500.0,0.00022191,2]
[344370498,1733382635418,-503.81023971,0.00022191,2]
[344370500,1733382635428,-504.87694286,0.00022191,2]
[344370502,1733382635437,-502.84604751,0.00022191,2]
[344370504,1733382635446,-500.0,0.00022191,2]
[344370506,1733382635456,-500.0,0.00022191,2]
[344370508,1733382635466,-500.0,0.00022191,2]
[344370510,1733382635476,-500.0,0.00022191,2]
[344370512,1733382635485,-500.0,0.00022191,2]
[344370514,1733382635495,-500.0,0.00022191,2]
[344370516,1733382635505,-500.0,0.00022191,2]
[344370518,1733382635514,-519.1140228,0.00022191,2]
[344370520,1733382635523,-502.56725177,0.00022191,2]
[344370522,1733382635538,-500.0,0.00022191,2]
[344370524,1733382635547,-500.0,0.00022191,2]
[344370526,1733382635556,-500.0,0.00022191,2]
[344370528,1733382635565,-500.0,0.00022191,2]
[344370530,1733382635574,-500.0,0.00022191,2]
[344370532,1733382635584,-500.0,0.00022191,2]
[344370534,1733382635593,-500.0,0.00022191,2]
[344370536,1733382635602,-513.65491692,0.00022191,2]
[344370538,1733382635611,-507.39136204,0.00022191,2]
[344370540,1733382635620,-500.0,0.00022191,2]
[344370542,1733382635629,-500.0,0.00022191,2]
[344370544,1733382635639,-605.29322069,0.00022191,2]
[344370546,1733382635648,-500.0,0.00022191,2]
[344370548,1733382635658,-458.58997792,0.00022191,2]
[344370550,1733382635668,-494.44714725,0.00022191,2]
[344370553,1733382635678,-500.0,0.00022191,2]
[344370555,1733382635687,-500.0,0.00022191,2]
[344370557,1733382635696,-500.63,0.00022191,2]
[344370559,1733382635706,-500.0,0.00022191,2]
[344370560,1733382635715,-500.0,0.00022191,2]
[344370563,1733382635725,-503.79163313,0.00022191,2]
[344370565,1733382635734,-500.0,0.00022191,2]
[344370566,1733382635743,-355.58213851,0.00022191,2]
[344370568,1733382635752,-343.34727426,0.00022191,2]
[344370570,1733382635762,-390.10737509,0.00022191,2]
[344370572,1733382635770,-500.0,0.00022191,2]
[344370574,1733382635782,-409.00614814,0.00022191,2]
[344370576,1733382635792,-515.20691532,0.00022191,2]
[344370578,1733382635802,-557.9968567,0.00022191,2]
[344370580,1733382635812,-500.0,0.00022191,2]
[344370582,1733382635821,-500.0,0.00022191,2]
[344370584,1733382635831,-500.0,0.00022191,2]
[344370586,1733382635841,-500.0,0.00022191,2]
[344370588,1733382635851,-462.86909394,0.00022191,2]
[344370591,1733382635861,-500.0,0.00022191,2]
[344370592,1733382635870,-504.99762089,0.00022191,2]
[344370594,1733382635880,-500.0,0.00022191,2]
[344370597,1733382635890,-505.8326993,0.00022191,2]
[344370599,1733382635900,-1031.75,0.00022191,2]
[344370600,1733382635909,-508.8654417,0.00022191,2]
[344370602,1733382635919,-187.66142694,0.00022191,2]
[344370605,1733382635929,-500.0,0.00022191,2]
[344370607,1733382635939,-500.0,0.00022191,2]
[344370609,1733382635952,-500.0,0.00022191,2]
[344370611,1733382635961,-500.0,0.00022191,2]
[344370613,1733382635971,-543.47274913,0.00022191,2]
[344370615,1733382635981,-500.0,0.00022191,2]
[344370617,1733382635991,-512.58130885,0.00022191,2]
[344370619,1733382636000,-797.51,0.00022191,2]
[344370621,1733382636009,-500.0,0.00022191,2]
[344370623,1733382636018,-500.0,0.00022191,2]
[344370625,1733382636029,-259.52844003,0.00022191,2]
[344370626,1733382636042,-500.0,0.00022191,2]
[344370628,1733382636051,-500.0,0.00022191,2]
[344370630,1733382636060,-500.0,0.00022191,2]
[344370632,1733382636069,-500.0,0.00022191,2]
[344370634,1733382636079,-500.0,0.00022191,2]
[344370636,1733382636088,-508.42472813,0.00022191,2]
[344370638,1733382636098,-500.0,0.00022191,2]
[344370640,1733382636107,-500.0,0.00022191,2]
[344370643,1733382636116,-500.0,0.00022191,2]
[344370645,1733382636126,-518.96,0.00022191,2]
[344370647,1733382636136,-500.0,0.00022191,2]
[344370649,1733382636145,-533.21277066,0.00022191,2]
[344370650,1733382636155,-500.0,0.00022191,2]
[344370652,1733382636164,-596.74735788,0.00022191,2]
[344370654,1733382636174,-500.0,0.00022191,2]
[344370657,1733382636183,-552.19,0.00022191,2]
[344370659,1733382636192,-500.0,0.00022191,2]
[344370661,1733382636202,-500.0,0.00022191,2]
[344370663,1733382636212,-1085.42,0.00022191,2]
[344370665,1733382636222,-500.0,0.00022191,2]
[344370667,1733382636231,-500.0,0.00022191,2]
[344370669,1733382636240,-500.0,0.00022191,2]
[344370671,1733382636250,-439.83877524,0.00022191,2]
[344370673,1733382636259,-500.0,0.00022191,2]
[344370675,1733382636268,-1153.21,0.00022191,2]
[344370676,1733382636278,-500.0,0.00022191,2]
[344370678,1733382636290,-500.0,0.00022191,2]
[344370680,1733382636299,-500.0,0.00022191,2]
[344370683,1733382636310,-500.0,0.00022191,2]
[344370685,1733382636321,-616.79,0.00022191,2]
[344370687,1733382636330,-500.0,0.00022191,2]
[344370689,1733382636340,-658.98,0.00022191,2]
[344370690,1733382636350,-423.40024955,0.00022191,2]
[344370692,1733382636361,-500.0,0.00022191,2]
[344370694,1733382636371,-500.0,0.00022191,2]
[344370696,1733382636382,-500.0,0.00022191,2]
[344370698,1733382636392,-500.0,0.00022191,2]
[344370701,1733382636404,-500.0,0.00022191,2]
[344370703,1733382636414,-502.834476,0.00022191,2]
[344370705,1733382636424,-501.57465356,0.00022191,2]
[344370707,1733382636433,-634.77973729,0.00022191,2]
[344370709,1733382636443,-500.0,0.00022191,2]
[344370711,1733382636453,-500.0,0.00022191,2]
[344370713,1733382636462,-500.0,0.00022191,2]
[344370714,1733382636472,-500.0,0.00022191,2]
[344370716,1733382636481,-500.0,0.00022191,2]
[344370719,1733382636491,-5347.86,0.00022191,2]
[344370721,1733382636500,-151.0,0.000222,6]
[344370723,1733382636511,-153.0,0.0002228,2]
[344370725,1733382636520,-1360.21484366,0.00022308,2]
[344370727,1733382636534,-22743.28640457,0.00022365,3]
[344370729,1733382636544,-500.0,0.00022465,2]
[344370731,1733382636553,-547.55065174,0.00022465,2]
[344370733,1733382636562,-508.46433871,0.00022465,2]
[344370735,1733382636571,-500.0,0.00022465,2]
[344370737,1733382636580,-500.0,0.00022465,2]
[344370739,1733382636589,-500.0,0.00022465,2]
[344370741,1733382636598,-500.0,0.00022465,2]
[344370743,1733382636607,-500.0,0.00022465,2]
[344370745,1733382636616,-500.0,0.00022465,2]
[344370747,1733382636626,-588.70163961,0.00022465,2]
[344370749,1733382636636,-500.0,0.00022465,2]
[344370751,1733382636645,-500.0,0.00022465,2]
[344370753,1733382636655,-399.01787579,0.00022465,2]
[344370755,1733382636665,-500.0,0.00022465,2]
[344370757,1733382636675,-500.0,0.00022465,2]
[344370759,1733382636684,-500.0,0.00022465,2]
[344370761,1733382636693,-500.0,0.00022465,2]
[344370763,1733382636702,-500.0,0.00022465,2]
[344370765,1733382636711,-500.0,0.00022465,2]
[344370767,1733382636720,-500.0,0.00022465,2]
[344370769,1733382636730,-500.0,0.00022465,2]
[344370771,1733382636739,-500.0,0.00022465,2]
[344370773,1733382636748,-500.0,0.00022465,2]
[344370775,1733382636758,-500.0,0.00022465,2]
[344370776,1733382636767,-500.0,0.00022465,2]
[344370778,1733382636776,-500.0,0.00022465,2]
[344370780,1733382636790,-500.0,0.00022465,2]
[344370782,1733382636799,-500.0,0.00022465,2]
[344370784,1733382636808,-500.0,0.00022465,2]
[344370786,1733382636817,-500.0,0.00022465,2]
[344370788,1733382636826,-500.63,0.00022465,2]
[344370790,1733382636835,-500.0,0.00022465,2]
[344370792,1733382636858,-500.0,0.00022465,2]
[344370794,1733382636867,-500.0,0.00022465,2]
[344370796,1733382636876,-500.0,0.00022465,2]
[344370798,1733382636885,-500.0,0.00022465,2]
[344370800,1733382636895,-509.37360003,0.00022465,2]
[344370802,1733382636904,-500.0,0.00022465,2]
[344370804,1733382636913,-648.34647328,0.00022465,2]
[344370806,1733382636923,-500.0,0.00022465,2]
[344370808,1733382636932,-500.0,0.00022465,2]
[344370810,1733382636942,-1031.75,0.00022465,2]
[344370812,1733382636955,-500.0,0.00022465,2]
[344370814,1733382636964,-500.0,0.00022465,2]
[344370815,1733382636973,-500.0,0.00022465,2]
[344370816,1733382636982,-500.0,0.00022465,2]
[344370817,1733382636991,-500.0,0.00022465,2]
[344370818,1733382636999,-797.51,0.00022465,2]
[344370819,1733382637008,-500.0,0.00022465,2]
[344370820,1733382637018,-500.0,0.00022465,2]
[344370821,1733382637027,-500.0,0.00022465,2]
[344370822,1733382637043,-500.0,0.00022465,2]
[344370823,1733382637053,-502.12412399,0.00022465,2]
[344370824,1733382637063,-500.0,0.00022465,2]
[344370825,1733382637072,-500.0,0.00022465,2]
[344370826,1733382637081,-500.0,0.00022465,2]
[344370827,1733382637090,-500.0,0.00022465,2]
[344370828,1733382637099,-200.22034805,0.00022465,2]
[344370829,1733382637109,-518.96,0.00022465,2]
[344370830,1733382637118,-500.0,0.00022465,2]
[344370831,1733382637195,-500.0,0.00022465,2]
[344370832,1733382637205,-500.0,0.00022465,2]
[344370833,1733382637214,-552.19,0.00022465,2]
[344370834,1733382637224,-500.0,0.00022465,2]
[344370835,1733382637233,-500.0,0.00022465,2]
[344370836,1733382637242,-1085.42,0.00022465,2]
[344370838,1733382637252,-338.54452069,0.00022465,2]
[344370839,1733382637261,-500.0,0.00022465,2]
[344370841,1733382637271,-500.0,0.00022465,2]
[344370842,1733382637284,-500.0,0.00022465,2]
[344370843,1733382637293,-1153.21,0.00022465,2]
[344370845,1733382637303,-500.0,0.00022465,2]
[344370846,1733382637312,-500.0,0.00022465,2]
[344370847,1733382637321,-500.0,0.00022465,2]
[344370848,1733382637331,-500.0,0.00022465,2]
[344370849,1733382637340,-616.79,0.00022465,2]
[344370850,1733382637350,-500.0,0.00022465,2]
[344370851,1733382637360,-658.98,0.00022465,2]
[344370852,1733382637369,-500.0,0.00022465,2]
[344370853,1733382637379,-500.0,0.00022465,2]
[344370854,1733382637389,-500.0,0.00022465,2]
[344370855,1733382637399,-500.0,0.00022465,2]
[344370856,1733382637409,-500.0,0.00022465,2]
[344370857,1733382637419,-176.97515057,0.00022465,2]
[344370858,1733382637429,-500.0,0.00022465,2]
[344370859,1733382637438,-5347.86,0.00022465,2]
[344370860,1733382637448,-151.0,0.000225,8]
[344370861,1733382637458,-266.010481,0.000225,5]
[344370862,1733382637467,-500.0,0.00022739,2]
[344370863,1733382637477,-500.0,0.00022739,2]
[344370864,1733382637487,-500.0,0.00022739,2]
[344370865,1733382637496,-500.0,0.00022739,2]
[344370866,1733382637506,-500.0,0.00022739,2]
[344370867,1733382637515,-500.0,0.00022739,2]
[344370869,1733382637524,-500.0,0.00022739,2]
[344370871,1733382637539,-500.0,0.00022739,2]
[344370873,1733382637548,-500.0,0.00022739,2]
[344370875,1733382637558,-500.0,0.00022739,2]
[344370877,1733382637567,-500.0,0.00022739,2]
[344370880,1733382637577,-500.0,0.00022739,2]
[344370882,1733382637587,-500.0,0.00022739,2]
[344370884,1733382637596,-500.0,0.00022739,2]
[344370886,1733382637605,-578.31606999,0.00022739,2]
[344370888,1733382637615,-266.69241156,0.00022739,2]
[344370890,1733382637625,-500.0,0.00022739,2]
[344370892,1733382637634,-526.46312416,0.00022739,2]
[344370894,1733382637644,-500.0,0.00022739,2]
[344370896,1733382637653,-500.0,0.00022739,2]
[344370898,1733382637662,-500.0,0.00022739,2]
[344370900,1733382637672,-500.0,0.00022739,2]
[344370902,1733382637681,-500.0,0.00022739,2]
[344370904,1733382637691,-500.0,0.00022739,2]
[344370906,1733382637701,-500.0,0.00022739,2]
[344370908,1733382637710,-500.0,0.00022739,2]
[344370910,1733382637719,-500.63,0.00022739,2]
[344370912,1733382637729,-500.0,0.00022739,2]
[344370914,1733382637738,-500.0,0.00022739,2]
[344370916,1733382637748,-500.0,0.00022739,2]
[344370918,1733382637757,-500.0,0.00022739,2]
[344370920,1733382637767,-500.0,0.00022739,2]
[344370922,1733382637776,-500.0,0.00022739,2]
[344370924,1733382637790,-507.65978696,0.00022739,2]
[344370926,1733382637799,-500.0,0.00022739,2]
[344370928,1733382637808,-1031.75,0.00022739,2]
[344370930,1733382637818,-500.0,0.00022739,2]
[344370932,1733382637827,-500.0,0.00022739,2]
[344370934,1733382637836,-500.0,0.00022739,2]
[344370937,1733382637846,-500.0,0.00022739,2]
[344370939,1733382637856,-500.0,0.00022739,2]
[344370941,1733382637865,-797.51,0.00022739,2]
[344370943,1733382637875,-500.0,0.00022739,2]
[344370945,1733382637884,-500.0,0.00022739,2]
[344370947,1733382637894,-500.0,0.00022739,2]
[344370949,1733382637904,-500.0,0.00022739,2]
[344370951,1733382637913,-507.25239134,0.00022739,2]
[344370953,1733382637923,-500.0,0.00022739,2]
[344370955,1733382637933,-500.0,0.00022739,2]
[344370957,1733382637942,-547.33755601,0.00022739,2]
[344370959,1733382637955,-518.96,0.00022739,2]
[344370961,1733382637971,-500.0,0.00022739,2]
[344370963,1733382637981,-500.0,0.00022739,2]
[344370965,1733382637990,-552.19,0.00022739,2]
[344370967,1733382638000,-500.0,0.00022739,2]
[344370969,1733382638009,-500.0,0.00022739,2]
[344370971,1733382638018,-1085.42,0.00022739,2]
[344370973,1733382638028,-500.0,0.00022739,2]
[344370975,1733382638044,-500.0,0.00022739,2]
[344370976,1733382638056,-500.0,0.00022739,2]
[344370977,1733382638066,-1153.21,0.00022739,2]
[344370978,1733382638075,-516.77117805,0.00022739,2]
[344370979,1733382638084,-500.0,0.00022739,2]
[344370980,1733382638094,-500.0,0.00022739,2]
[344370981,1733382638103,-500.0,0.00022739,2]
[344370982,1733382638113,-616.79,0.00022739,2]
[344370983,1733382638123,-658.98,0.00022739,2]
[344370984,1733382638132,-500.0,0.00022739,2]
[344370985,1733382638142,-500.0,0.00022739,2]
[344370986,1733382638153,-500.0,0.00022739,2]
[344370987,1733382638162,-500.0,0.00022739,2]
[344370988,1733382638172,-500.0,0.00022739,2]
[344370989,1733382638182,-5347.86,0.00022739,2]
[344370990,1733382638192,-151.0,0.000228,9]
[344370991,1733382638202,-151.0,0.000228,6]
[344370992,1733382638211,-500.0,0.00023013,2]
[344370993,1733382638220,-500.0,0.00023013,2]
[344370994,1733382638230,-500.0,0.00023013,2]
[344370995,1733382638239,-500.0,0.00023013,2]
[344370997,1733382638249,-500.0,0.00023013,2]
[344370999,1733382638258,-500.0,0.00023013,2]
[344371001,1733382638267,-500.0,0.00023013,2]
[344371003,1733382638277,-500.0,0.00023013,2]
[344371005,1733382638291,-500.0,0.00023013,2]
[344371007,1733382638300,-500.0,0.00023013,2]
[344371009,1733382638310,-500.0,0.00023013,2]
[344371012,1733382638319,-500.0,0.00023013,2]
[344371014,1733382638328,-500.0,0.00023013,2]
[344371016,1733382638337,-500.0,0.00023013,2]
[344371018,1733382638346,-612.96264692,0.00023013,2]
[344371020,1733382638355,-500.0,0.00023013,2]
[344371022,1733382638366,-500.0,0.00023013,2]
[344371024,1733382638375,-500.0,0.00023013,2]
[344371026,1733382638384,-500.0,0.00023013,2]
[344371028,1733382638393,-500.0,0.00023013,2]
[344371030,1733382638403,-500.0,0.00023013,2]
[344371032,1733382638412,-500.0,0.00023013,2]
[344371034,1733382638422,-500.0,0.00023013,2]
[344371035,1733382638432,-500.63,0.00023013,2]
[344371036,1733382638441,-500.0,0.00023013,2]
[344371037,1733382638450,-500.0,0.00023013,2]
[344371038,1733382638460,-500.0,0.00023013,2]
[344371039,1733382638468,-500.0,0.00023013,2]
[344371040,1733382638478,-189.22991679,0.00023013,2]
[344371041,1733382638487,-647.93577035,0.00023013,2]
[344371042,1733382638496,-431.29947107,0.00023013,2]
[344371043,1733382638505,-1031.75,0.00023013,2]
[344371044,1733382638514,-509.65007739,0.00023013,2]
[344371045,1733382638523,-375.76792905,0.00023013,2]
[344371046,1733382638537,-500.0,0.00023013,2]
[344371047,1733382638546,-500.0,0.00023013,2]
[344371048,1733382638556,-500.0,0.00023013,2]
[344371049,1733382638565,-500.0,0.00023013,2]
[344371050,1733382638575,-797.51,0.00023013,2]
[344371051,1733382638584,-508.41100145,0.00023013,2]
[344371052,1733382638593,-500.0,0.00023013,2]
[344371053,1733382638603,-500.0,0.00023013,2]
[344371054,1733382638612,-500.0,0.00023013,2]
[344371055,1733382638624,-500.0,0.00023013,2]
[344371056,1733382638633,-518.96,0.00023013,2]
[344371057,1733382638642,-500.0,0.00023013,2]
[344371058,1733382638651,-500.0,0.00023013,2]
[344371059,1733382638661,-552.19,0.00023013,2]